Workbook

Sheet Kontrolle
B2: Kostenvergleichsrechnung
B4: Anlagen | C4: A | D4: B | E4: C
B5: weitere Angaben | C5: Anlage A | D5: Anlage B | E5: Anlage C
B6: Anschaffungskosten | C6: 540000 | D6: 150000 | E6: 160000
B7: Nutzungsdauer in Jahren | C7: 6 | D7: 5 | E7: 5
B8: Liquidationserlös | C8: 10000 | D8: 20000 | E8: 35000
B9: ständiger Stoffvorrat (Roh-, Hilfs-, Betriebsstoffe) | C9: 4000 | D9: 4000 | E9: 4000
B10: kalkulatorischer Zinssatz in % | C10: 6 | D10: 6 | E10: 6
B11: Leistungseinheiten pro Jahr | C11: 22000 | D11: 24000 | E11: 25000
B12: Wartung | C12: 8000 | D12: 4000 | E12: 4000
B13: sonstige fixe Kosten | C13: 14000 | D13: 18000 | E13: 19000
B14: Energiekosten je Leistungseinheit | C14: 0.6 | D14: 0.5 | E14: 0.4
B15: Materialkosten je Leistungseinheit | C15: 4 | D15: 4 | E15: 4
B16: sonstige variable Kosten je Leistungseinheit | C16: 0.4 | D16: 0.4 | E16: 0.4
B20: fixe Kosten
B21: variable Kosten
B22: Gesamtkosten
B23: Kosten je Leistungseinheit

Sheet Berechnungen
B4: Anlagen | C4: A | D4: B | E4: C
B5: durchschnittliche Kapitalbindung | C5: =(Kontrolle!C6-Kontrolle!C8)/2 -> 265000 | D5: =(Kontrolle!D6-Kontrolle!D8)/2 -> 65000 | E5: =(Kontrolle!E6-Kontrolle!E8)/2 -> 62500
B6: ständige Kapitalbindung (Liquidationserlös + Stoffvorrat) | C6: =Kontrolle!C8+Kontrolle!C9 -> 14000 | D6: =Kontrolle!D8+Kontrolle!D9 -> 24000 | E6: =Kontrolle!E8+Kontrolle!E9 -> 39000
B7: FIXE KOSTEN
B8: Abschreibung | C8: =(Kontrolle!C6-Kontrolle!C8)/Kontrolle!C7 -> 88333.33333 | D8: =(Kontrolle!D6-Kontrolle!D8)/Kontrolle!D7 -> 26000 | E8: =(Kontrolle!E6-Kontrolle!E8)/Kontrolle!E7 -> 25000
B9: kalkulatorische Zinsen auf die durchschnittliche Kapitalbindung | C9: =(C5)*Kontrolle!C10/100 -> 15900 | D9: =(D5)*Kontrolle!D10/100 -> 3900 | E9: =(E5)*Kontrolle!E10/100 -> 3750
B10: kalkulatorische Zinsen auf die ständige Kapitalbindung | C10: =C6*Kontrolle!C10/100 -> 840 | D10: =D6*Kontrolle!D10/100 -> 1440 | E10: =E6*Kontrolle!E10/100 -> 2340
B11: Wartung | C11: =Kontrolle!C12 -> 8000 | D11: =Kontrolle!D12 -> 4000 | E11: =Kontrolle!E12 -> 4000
B12: sonstige fixe Kosten | C12: =Kontrolle!C13 -> 14000 | D12: =Kontrolle!D13 -> 18000 | E12: =Kontrolle!E13 -> 19000
B13: fixe Kosten | C13: =ROUND(SUM(C8:C12),2) -> 127073.33 | D13: =ROUND(SUM(D8:D12),2) -> 53340 | E13: =ROUND(SUM(E8:E12),2) -> 54090
B14: VARIABLE KOSTEN
B15: Energiekosten | C15: =Kontrolle!C14*Kontrolle!C11 -> 13200 | D15: =Kontrolle!D14*Kontrolle!D11 -> 12000 | E15: =Kontrolle!E14*Kontrolle!E11 -> 10000
B16: Materialkosten | C16: =Kontrolle!C15*Kontrolle!C11 -> 88000 | D16: =Kontrolle!D15*Kontrolle!D11 -> 96000 | E16: =Kontrolle!E15*Kontrolle!E11 -> 100000
B17: sonstige variable Kosten | C17: =Kontrolle!C16*Kontrolle!C11 -> 8800 | D17: =Kontrolle!D16*Kontrolle!D11 -> 9600 | E17: =Kontrolle!E16*Kontrolle!E11 -> 10000
B18: variable Kosten | C18: =ROUND(SUM(C15:C17),2) -> 110000 | D18: =ROUND(SUM(D15:D17),2) -> 117600 | E18: =ROUND(SUM(E15:E17),2) -> 120000
B20: Gesamtkosten pro Jahr | C20: =ROUND(C13+C18,2) -> 237073.33 | D20: =ROUND(D13+D18,2) -> 170940 | E20: =ROUND(E13+E18,2) -> 174090
B21: Kosten je Leistungseinheit | C21: =ROUND(C20/Kontrolle!C11,4) -> 10.7761 | D21: =ROUND(D20/Kontrolle!D11,4) -> 7.1225 | E21: =ROUND(E20/Kontrolle!E11,4) -> 6.9636

Sheet Tabelle3
